[Event "AI Cup Div-2 2023"]
[Site "Online"]
[Date "2023.09.26"]
[Round "2.3"]
[White "Caruana, Fabiano"]
[Black "Sarana, Alexey"]
[Result "0-1"]
[ECO "A09"]
[WhiteElo "2786"]
[BlackElo "2693"]
[Annotator "TA"]
[PlyCount "88"]
[EventDate "2023.09.18"]
[EventType "k.o."]
[EventCountry "NET"]
[SourceTitle "playchess.com"]
[Source "ChessBase"]
[SourceQuality "1"]
[TimeControl "900+3"]

{[%evp 9,88,-34,10,1,23,23,53,53,47,48,60,45,57,49,65,58,103,98,113,106,95,38,75,0,0,0,0,0,21,0,0,0,0,-32,-22,-29,-28,-14,-21,-20,-25,-27,-16,-38,-44,-55,0,-74,-60,-100,-78,-84,-71,-107,-96,-69,-75,-272,-282,-261,-264,-278,-299,-289,-288,-299,-291,-268,-268,-264,-265,-681,339,-681,-681,-681,-681,-681,-681,-793,-680]} 1. Nf3 {[%emt 0:00:05]} d5 {[%emt 0:00:05]} 2. c4 {[%emt 0:00:02]} d4 {[%emt 0:00:01]} 3. b4 {[%emt 0:00:02]} f6 {[%emt 0:00:01]} 4. d3 {[%emt 0:00:20]} e5 {[%emt 0:00:03]} 5. b5 {[%emt 0:00:01]} c5 {[%emt 0:00:12]} 6. g3 {[%emt 0:00:12] A09: Réti Opening: 1 Nf3 d5 2 c4.} Bd6 {[%emt 0:00:10]} 7. Bg2 {[%emt 0:00:03]} f5 {[%emt 0:00:04]} 8. O-O {[%emt 0:00:04] White is slightly better.} Nf6 {[%emt 0:00:00]} 9. e3 {[%emt 0:00:06]} O-O {[%emt 0:00:04]} 10. exd4 {[%emt 0:00:02]} exd4 {[%emt 0:00:00] [#]} 11. Re1 $146 {[%emt 0:00:20]} ({Predecessor:} 11. Nbd2 Qc7 12. Qb3 Kh8 13. a4 Qf7 14. Ba3 Rd8 15. Rae1 Qh5 16. Re2 Nbd7 17. Qd1 {1-0 Goldsztejn,G (2150)-Rainfray,A (2270) FRA-chT U18 9798 1997 (10)}) 11... a5 {[%emt 0:00:06]} 12. Na3 {[%emt 0:01:01]} Nbd7 {[%emt 0:01:46][%cal Of5f4] [#]} 13. b6 $1 {[%emt 0:01:00][%mdl 512]} Ra6 {[%emt 0:00:49]} (13... Nxb6 14. Nb5) 14. Nb5 {[%emt 0:00:16]} Bb8 {[%emt 0:00:02]} 15. Ng5 {[%emt 0:01:01]} (15. Nc7 $16) 15... Rxb6 {[%emt 0:00:08]} 16. Bd2 {[%emt 0:00:46]} (16. Ne6 $6 Rxe6 17. Rxe6 Ne5 18. Rxe5 Bxe5 $11) ({White should try} 16. Ba3 $1 $16) 16... Ra6 $11 {[%emt 0:00:02]} 17. f4 {[%emt 0:00:57]} Re8 {[%emt 0:00:31] Wards off Ne6} 18. Qb3 {[%emt 0:00:30] Threatens to win with Bd5+.} a4 {[%emt 0:00:14]} 19. Qc2 {[%emt 0:00:05]} (19. Qa3 $5 {[%cal Re1e8]}) 19... Nf8 {[%emt 0:00:17]} 20. Rxe8 {[%emt 0:00:08]} Qxe8 {[%emt 0:00:00]} 21. Re1 {[%emt 0:00:01]} Qd8 {[%emt 0:00:12]} 22. Nf3 {[%emt 0:00:33]} Bd7 {[%emt 0:01:22]} 23. Ne5 {[%emt 0:00:22]} Bc6 {[%emt 0:00:04]} 24. Nxc6 {[%emt 0:00:16]} bxc6 {[%emt 0:00:01]} 25. Na3 {[%emt 0:00:00]} Bc7 {[%emt 0:00:08]} 26. Bf3 {[%emt 0:00:40]} Ba5 {[%emt 0:01:09]} 27. Nb1 {[%emt 0:00:02][%cal Oe1e5]} Qb6 {[%emt 0:00:33]} ({Better is} 27... h6 $15) 28. Bxa5 {[%emt 0:00:46]} (28. Re5 $11) 28... Qxa5 $17 {[%emt 0:00:02]} 29. Nd2 {[%emt 0:00:02]} Rb6 {[%emt 0:00:02]} 30. Rc1 {[%emt 0:02:28]} Ne6 {[%emt 0:00:25][%cal Oa5c3]} 31. Bd1 {[%emt 0:00:50] [#]} Qc3 $1 {[%emt 0:00:43][%mdl 512] Black is more active.} 32. Qxc3 {[%emt 0:00:45]} dxc3 {[%emt 0:00:00]} 33. Nb1 {[%emt 0:00:06] [#]} (33. Rb1 $17 Rb2 34. Rxb2 cxb2 35. Bxa4) 33... c2 $1 $19 {[%emt 0:00:40][%mdl 512]} 34. Bxc2 {[%emt 0:00:03]} Nd4 {[%emt 0:00:00] And now ...Ne2+ would win.} 35. Nc3 {[%emt 0:00:02] [#] Wards off Ne2+} Rb2 $1 {[%emt 0:00:26]} 36. Bxa4 {[%emt 0:01:37]} Nf3+ {[%emt 0:00:13]} 37. Kf1 {[%emt 0:00:01]} Nxh2+ {[%emt 0:00:01]} (37... Rxh2 38. Bd1 Ng4 39. Bxf3 $11) 38. Kg1 {[%emt 0:00:02]} Nf3+ {[%emt 0:00:00]} 39. Kf1 {[%emt 0:00:01]} Ng4 {[%emt 0:00:23][%cal Rg4e3]} 40. Ne2 $2 {[%emt 0:00:02]} (40. Bc2) 40... Ne3+ {[%emt 0:01:20]} 41. Kf2 {[%emt 0:00:02]} Nd4 {[%emt 0:00:00] Black is clearly winning.} (41... Rxa2 $2 42. Kxe3 Nh2 43. Bc2 $18) 42. Re1 {[%emt 0:00:01]} Ng4+ {[%emt 0:00:10] A dynamic duo of knights.} ({Inferior is} 42... Rxa2 43. Kxe3 Nxe2 44. Bb3 $14) 43. Kf1 {[%emt 0:00:03]} Nh2+ {[%emt 0:00:05]} ({And not} 43... Rxa2 44. Nxd4 Rf2+ 45. Kg1 cxd4 46. Re8+ (46. Bxc6 Rd2 $17) 46... Kf7 47. Bxc6 $17) 44. Kf2 {[%emt 0:00:01]} Nhf3 {[%emt 0:00:02] Weighted Error Value: White=0.31/Black=0.08 (flawless)} 0-1

[Event "AI Cup Div-2 2023"]
[Site "Online"]
[Date "2023.09.26"]
[Round "2.3"]
[White "Andreikin, Dmitry"]
[Black "Dominguez Perez, Leinier"]
[Result "1-0"]
[ECO "D36"]
[WhiteElo "2729"]
[BlackElo "2745"]
[Annotator "TA"]
[PlyCount "85"]
[EventDate "2023.09.18"]
[EventType "k.o."]
[EventCountry "NET"]
[SourceTitle "playchess.com"]
[Source "ChessBase"]
[SourceQuality "1"]
[TimeControl "900+3"]

{[%evp 24,85,0,0,0,0,-4,-9,0,0,0,0,0,0,23,4,18,0,0,0,0,0,19,19,27,36,20,0,0,0,0,0,0,0,0,0,0,28,0,0,29,20,41,24,177,32,169,163,172,179,169,168,148,145,159,150,182,-3,912,910,947,947,1531,1449]} 1. Nf3 {[%emt 0:00:09]} Nf6 {[%emt 0:00:05]} 2. c4 {[%emt 0:00:04]} e6 {[%emt 0:00:12]} 3. Nc3 {[%emt 0:00:43]} d5 {[%emt 0:00:03]} 4. cxd5 {[%emt 0:00:08]} exd5 {[%emt 0:00:03]} 5. d4 {[%emt 0:00:01]} c6 {[%emt 0:00:40]} 6. Qc2 {[%emt 0:00:03]} g6 {[%emt 0:00:04]} 7. Bg5 {[%emt 0:00:10]} Be7 {[%emt 0:00:02]} 8. e3 {[%emt 0:00:09]} Bf5 {[%emt 0:00:03]} 9. Bd3 {[%emt 0:00:02]} Bxd3 {[%emt 0:00:01]} 10. Qxd3 {[%emt 0:00:01]} Nbd7 {[%emt 0:00:01]} 11. O-O {[%emt 0:00:09]} O-O {[%emt 0:00:03]} 12. Rab1 {[%emt 0:00:06]} a5 {[%emt 0:00:03]} 13. Rfc1 {[%emt 0:00:01]} Re8 {[%emt 0:00:19] D36: Queen's Gambit Declined: Exchange Variation: Main line (5 Bg5 c6 6 Qc2).} 14. Nd2 {[%emt 0:01:10]} Nh5 {[%emt 0:02:32]} 15. Bxe7 {[%emt 0:00:10]} Qxe7 {[%emt 0:00:00] [#] The position is equal.} 16. a3 $146 {[%emt 0:00:35]} ({Predecessor:} 16. b3 f5 17. Re1 Nhf6 18. f3 Nb6 19. Na4 Nc8 20. Rbc1 Nd6 21. Nc3 Kh8 22. Re2 {½-½ Rajesh,V (2410)-Saurabh,A (2210) Chennai op 11th 2019 (4)}) 16... Nhf6 {[%emt 0:00:03]} 17. Na4 {[%emt 0:01:19][%cal Bc3a4,Ba4b2,Bb2d3,Bd3e5][%mdl 32]} h5 {[%emt 0:00:46]} 18. h3 {[%emt 0:00:42]} h4 {[%emt 0:00:10]} 19. Qc2 {[%emt 0:00:16]} Kg7 {[%emt 0:01:15]} 20. b4 {[%emt 0:03:32]} axb4 {[%emt 0:00:54]} 21. axb4 {[%emt 0:00:00]} b5 {[%emt 0:00:11]} 22. Nb2 {[%emt 0:00:20]} Rec8 {[%emt 0:01:35]} 23. Nd3 {[%emt 0:00:06]} Nb6 {[%emt 0:00:04]} 24. Ra1 {[%emt 0:02:43]} Nc4 {[%emt 0:00:14]} 25. Qc3 {[%emt 0:00:02]} g5 {[%emt 0:03:34]} 26. Ne5 {[%emt 0:00:03]} Qe6 {[%emt 0:00:03]} 27. Ndf3 {[%emt 0:00:34]} Ne4 {[%emt 0:00:12]} 28. Qe1 {[%emt 0:00:01]} f6 {[%emt 0:00:02]} 29. Nd3 {[%emt 0:00:01]} Ra4 {[%emt 0:01:33]} 30. Nc5 {[%emt 0:00:10]} Nxc5 {[%emt 0:00:01]} 31. dxc5 {[%emt 0:00:00]} Rca8 {[%emt 0:00:28]} 32. Nd4 {[%emt 0:00:10]} Qe8 {[%emt 0:00:03]} 33. Qd1 {[%emt 0:01:16]} R8a6 $2 {[%emt 0:00:18]} (33... Rxb4 $2 34. Ne6+ Qxe6 35. Rxa8 $18) (33... Nb2 $11 {and Black stays safe.} 34. Qf1 (34. Nf5+ Kg8 $11) 34... Nc4) 34. Nf5+ {[%emt 0:00:30]} (34. Rxa4 $18 Rxa4 35. Qg4) 34... Kg6 {[%emt 0:00:06]} (34... Kf8 $14) 35. Rxa4 $18 {[%emt 0:00:25]} Rxa4 {[%emt 0:00:25]} 36. Qc2 $36 {[%emt 0:00:16][%mdl 2048] Nd6+ would be deadly. White is in control.} Qe4 {[%emt 0:00:35]} 37. Ne7+ {[%emt 0:00:13]} Kf7 {[%emt 0:00:02]} 38. Qxe4 {[%emt 0:00:14]} ({Of course not} 38. Nxc6 $6 Qxc2 39. Rxc2 Ke8 $11) 38... dxe4 {[%emt 0:00:00]} 39. Nxc6 {[%emt 0:00:01]} Nb2 {[%emt 0:00:10] [#]} 40. Nb8 $2 {[%emt 0:00:17]} ({White has to play} 40. Na5 $1 $18 {Strongly threatening c6.} Ke7 41. c6) 40... Nd3 $2 {[%emt 0:00:03][%mdl 8192] [#]} (40... Rxb4 $11 41. Rc2 (41. c6 Rc4 $11) 41... Na4) 41. c6 $1 {[%emt 0:00:00][%cal Bc5c6,Bc6c7][%mdl 32] c7 is the strong threat. White is clearly winning.} Nxc1 {[%emt 0:00:04]} (41... Ra7 42. c7) 42. c7 {[%emt 0:00:01]} Ne2+ {[%emt 0:00:02]} 43. Kh2 {[%emt 0:00:00] Weighted Error Value: White=0.16 (very precise) /Black=0.26 (precise)} 1-0

[Event "AI Cup Div-2 2023"]
[Site "Online"]
[Date "2023.09.26"]
[Round "2.3"]
[White "Duda, Jan-Krzysztof"]
[Black "Artemiev, Vladislav"]
[Result "0-1"]
[ECO "E11"]
[WhiteElo "2726"]
[BlackElo "2697"]
[Annotator "TA"]
[PlyCount "130"]
[EventDate "2023.09.18"]
[EventType "k.o."]
[EventCountry "NET"]
[SourceTitle "playchess.com"]
[Source "ChessBase"]
[SourceQuality "1"]
[TimeControl "900+3"]

{[%evp 9,130,13,4,5,8,0,16,0,9,4,16,17,11,-21,-12,-7,-11,-18,0,-2,-31,-26,0,0,0,0,0,-35,-30,-31,-5,-60,-46,-57,-50,-54,-40,-47,-35,-51,-10,-3,-16,-8,-20,-15,121,133,117,126,128,129,125,118,102,118,111,0,0,0,150,129,247,0,0,0,0,0,0,0,0,0,0,0,0,0,0,0,8,8,8,0,0,0,0,0,0,0,0,0,0,0,0,0,0,-29967,-29970,-29966,-29967,-29972,-29973,-29977,-29974,-29978,-29979,-29980,-29981,-29980,-29981,-29985,-29986,-29986,-29979,-29982,-29983,-29982,-29983,-29983,-29983,-29986,-29987,-29987,-29988]} 1. d4 {[%emt 0:00:06]} d5 {[%emt 0:00:07]} 2. c4 {[%emt 0:00:01]} e6 {[%emt 0:00:01]} 3. Nf3 {[%emt 0:00:02]} Nf6 {[%emt 0:00:06]} 4. g3 {[%emt 0:00:01]} Bb4+ {[%emt 0:00:38]} 5. Bd2 {[%emt 0:00:02]} Be7 {[%emt 0:00:01]} 6. Bg2 {[%emt 0:00:02] E11: Bogo-Indian.} Nbd7 {[%emt 0:00:21]} 7. O-O {[%emt 0:00:04]} c6 {[%emt 0:00:37]} 8. Qc2 {[%emt 0:00:06] The position is equal.} b6 {[%emt 0:00:35]} 9. Rd1 {[%emt 0:00:58]} Bb7 $1 {[%emt 0:00:21][%mdl 4] is more profitable than 9...Ba6 at the moment.} 10. Nc3 {[%emt 0:01:25]} O-O {[%emt 0:00:28]} 11. e4 {[%emt 0:00:06]} dxc4 {[%emt 0:00:31]} 12. e5 {[%emt 0:00:22]} Nd5 {[%emt 0:00:02]} 13. Ne4 {[%emt 0:00:01]} h6 {[%emt 0:02:15] Against Neg5} (13... b5 {with more complications.} 14. b3 c5 15. bxc4 bxc4 16. Neg5 g6) 14. Qxc4 {[%emt 0:00:17]} c5 {[%emt 0:00:00]} 15. dxc5 {[%emt 0:00:27]} bxc5 {[%emt 0:00:08] [#]} 16. Qc1 $146 {[%emt 0:01:15][%cal Od2h6]} ({Predecessor:} 16. Rac1 Qb8 17. Qe2 Rd8 18. Ba5 Rc8 19. Ned2 N7b6 20. a3 Bc6 21. Ne1 Qb7 22. Qg4 {0-1 Robertson,J (2119)-Weaving,R (2314) BCF-chT1b 1718 (4NCL) 2017 (4.76)}) 16... Nb4 {[%emt 0:02:53]} 17. Ne1 {[%emt 0:02:25] aiming for Bxb4.} Bd5 {[%emt 0:00:04]} 18. a3 {[%emt 0:01:03]} Nc6 {[%emt 0:00:07]} 19. Bc3 {[%emt 0:00:06][%cal Oe4f6] Dodges Nd4} Rc8 {[%emt 0:04:09]} (19... Ncxe5 20. Bxe5 Nxe5 21. Nc3 $11) 20. Qe3 {[%emt 0:02:16]} (20. Nd6 $11 Bxd6 21. exd6) 20... Ncxe5 {[%emt 0:00:38]} 21. Bxe5 {[%emt 0:00:13]} Nxe5 {[%emt 0:00:01]} 22. Nc3 $1 {[%emt 0:00:01][%csl LRd5,LRe5]} Nc4 {[%emt 0:00:51][%csl LRb2,LRe3]} 23. Qe2 {[%emt 0:00:01][%cal Rg2d5]} Nb6 {[%emt 0:00:01]} 24. a4 {[%emt 0:00:10]} Bf6 {[%emt 0:00:32] A strong pair of Bishops.} 25. a5 {[%emt 0:00:08]} Bxc3 {[%emt 0:00:01]} 26. bxc3 {[%emt 0:00:20]} Nc4 {[%emt 0:00:15]} 27. Ra4 {[%emt 0:00:37]} Nxa5 {[%emt 0:00:04]} (27... Nd6 $11 {remains equal.} 28. Bxd5 exd5 29. Rxd5 Re8) 28. c4 $1 $16 {[%emt 0:00:50]} Nxc4 {[%emt 0:00:04] And now ...Nb6 would win.} 29. Bxd5 {[%emt 0:00:03][%mdl 64] Remove Defender} exd5 {[%emt 0:00:10][%cal Be6d5,Bd5c4,Bc4c3][%mdl 32]} 30. Rxc4 {[%emt 0:00:01][%mdl 64] Pin} Re8 {[%emt 0:00:01]} 31. Qf1 {[%emt 0:00:03]} dxc4 {[%emt 0:00:20]} 32. Rxd8 {[%emt 0:00:00]} Rcxd8 {[%emt 0:00:01]} 33. Nc2 {[%emt 0:00:07]} (33. Nf3 $1 $16) 33... c3 $1 $11 {[%emt 0:00:09]} 34. Qb5 {[%emt 0:01:26][%cal Og1g2]} Re4 {[%emt 0:00:01]} ({Black should play} 34... c4 $11) 35. Qxc5 $16 {[%emt 0:00:46]} Re2 {[%emt 0:00:04] [#]} (35... Rd1+ $16 {keeps fighting.} 36. Kg2 Rd8 37. Qxc3 (37. Qxa7 Rc8 $16) 37... Rde8) 36. Qxc3 $2 {[%emt 0:00:24]} ({White must play} 36. Nd4 $1 $18 {[%cal Rd4e2]} Rd2 37. Nb3 (37. Qxc3 $2 {perishes.} R2xd4 38. Qc5 Rd1+ 39. Kg2 R8d7 $19)) 36... Rd1+ $11 {[%emt 0:00:02]} 37. Kg2 {[%emt 0:00:02] Nd4 would be deadly.} Rdd2 {[%emt 0:00:01]} 38. Qc8+ {[%emt 0:00:11]} Kh7 {[%emt 0:00:01]} 39. Qf5+ {[%emt 0:00:03]} Kg8 {[%emt 0:00:00]} 40. Na3 {[%emt 0:00:17]} Rxf2+ {[%emt 0:00:03]} 41. Qxf2 {[%emt 0:00:00]} Rxf2+ {[%emt 0:00:01]} 42. Kxf2 {[%emt 0:00:00][%mdl 4096] Endgame KN-KP} a5 {[%emt 0:00:05]} 43. Ke3 {[%emt 0:00:02]} Kh7 {[%emt 0:00:03]} 44. Nc4 {[%emt 0:00:11]} a4 {[%emt 0:00:01]} 45. Kd4 {[%emt 0:00:07]} Kg6 {[%emt 0:00:01]} 46. Ne3 {[%emt 0:00:06]} Kf6 {[%emt 0:00:02]} 47. Kc4 {[%emt 0:00:07]} Ke5 {[%emt 0:00:00] Threatens to win with ...Ke4.} 48. Kb4 {[%emt 0:00:01]} Ke4 {[%emt 0:00:01]} 49. Nc4 {[%emt 0:00:01]} Kf3 {[%emt 0:00:06] Hoping for ...h5.} 50. Ne5+ {[%emt 0:00:06]} (50. Kxa4 $2 h5 51. Kb3 Kg2 $19) 50... Kg2 {[%emt 0:00:02]} 51. Nxf7 {[%emt 0:00:02]} Kxh2 {[%emt 0:00:00] KN-K3P} 52. g4 {[%emt 0:00:01][%mdl 8192]} (52. Kxa4 $2 {is the wrong capture.} Kxg3 53. Nd6 h5 54. Nf5+ Kf4 55. Nxg7 h4 56. Ne6+ Kg4 $19) (52. Nd6 $11) 52... Kg3 {[%emt 0:00:01] Black mates.} 53. g5 {[%emt 0:00:03] [#]} h5 $1 {[%emt 0:00:00][%cal Bh6h5,Bh5h4][%mdl 32]} 54. Nd6 {[%emt 0:00:05]} g6 {[%emt 0:00:28][%cal Bg7g6,Bg6g5][%mdl 32]} 55. Kxa4 {[%emt 0:00:03] KN-KPP} h4 {[%emt 0:00:02]} 56. Nf5+ {[%emt 0:00:02]} Kg4 $1 {[%emt 0:00:01][%mdl 64] Double Attack} ({Less strong is} 56... gxf5 57. g6 h3 58. g7 $14) 57. Ne3+ {[%emt 0:00:04]} Kxg5 {[%emt 0:00:04]} 58. Kb4 {[%emt 0:00:01]} Kf4 {[%emt 0:00:02]} 59. Nf1 {[%emt 0:00:00]} g5 {[%emt 0:00:08]} 60. Kc3 {[%emt 0:00:03]} Kf3 {[%emt 0:00:04]} 61. Kd3 {[%emt 0:00:04]} h3 {[%emt 0:00:04]} 62. Nh2+ {[%emt 0:00:07]} Kg2 {[%emt 0:00:02]} 63. Ng4 {[%emt 0:00:02]} h2 {[%emt 0:00:00]} 64. Nxh2 {[%emt 0:00:05]} Kxh2 {[%emt 0:00:00]} 65. Ke3 {[%emt 0:00:02]} g4 {[%emt 0:00:01] What a bad dream for White.   Weighted Error Value: White=0.16 (very precise) /Black=0.14 (very precise)} 0-1

[Event "AI Cup Div-2 2023"]
[Site "Online"]
[Date "2023.09.26"]
[Round "2.3"]
[White "Fedoseev, Vladimir"]
[Black "Keymer, Vincent"]
[Result "1-0"]
[ECO "E46"]
[WhiteElo "2683"]
[BlackElo "2717"]
[Annotator "TA"]
[PlyCount "83"]
[EventDate "2023.09.18"]
[EventType "k.o."]
[EventCountry "NET"]
[SourceTitle "playchess.com"]
[Source "ChessBase"]
[SourceQuality "1"]
[TimeControl "900+3"]

{[%evp 9,83,-9,0,0,0,5,27,0,0,0,-3,-12,0,0,-1,6,1,9,1,-6,7,0,9,-17,-18,-16,-10,-20,6,11,17,16,18,12,20,16,20,25,117,115,146,146,146,154,231,222,220,176,168,204,269,274,284,290,293,291,287,290,279,283,285,278,913,917,783,473,695,345,1622,940,29970,29971,29960,7008,5406,5406]} 1. d4 {[%emt 0:00:19]} Nf6 {[%emt 0:00:05]} 2. c4 {[%emt 0:00:03]} e6 {[%emt 0:00:01]} 3. Nc3 {[%emt 0:00:02]} Bb4 {[%emt 0:00:01]} 4. e3 {[%emt 0:00:01]} O-O {[%emt 0:00:04]} 5. Nge2 {[%emt 0:00:05]} Re8 {[%emt 0:00:01]} 6. Ng3 {[%emt 0:00:01] E46: Nimzo-Indian: Rubinstein: 4 e3 0-0 5 Ne2 without early Bd3.} d5 {[%emt 0:00:18]} 7. Be2 {[%emt 0:00:04] [#]} dxc4 $146 {[%emt 0:00:53]} ({Predecessor:} 7... c5 8. dxc5 Nbd7 9. O-O Bxc3 10. bxc3 Nxc5 11. cxd5 Qxd5 12. Ba3 b6 13. Bf3 Qxd1 14. Rfxd1 {½-½ Del Rio de Angelis,S (2503)-Yuffa,D (2562) ESP-chT CECLUB Honor 2021 (4.3)}) 8. Bxc4 {[%emt 0:00:06] White has an edge.} c5 {[%emt 0:00:01]} 9. a3 {[%emt 0:00:12]} Ba5 {[%emt 0:00:22]} 10. O-O {[%emt 0:00:12]} Nc6 {[%emt 0:01:25][%cal Rc5d4]} 11. dxc5 {[%emt 0:01:22] [#] Hoping for b4.} Bxc3 {[%emt 0:00:03]} 12. bxc3 {[%emt 0:00:12]} Qa5 {[%emt 0:00:08][%csl LRc3,LRc5] Inhibits Bb5.} 13. Rb1 {[%emt 0:01:49]} Qxc5 {[%emt 0:00:32]} 14. Bd3 {[%emt 0:00:02][%cal Bc4d3,Bd3e4,Be4d5][%mdl 32]} e5 {[%emt 0:02:42]} 15. Qc2 {[%emt 0:00:07]} b6 {[%emt 0:00:38]} 16. Ne4 {[%emt 0:01:18]} (16. c4 $5 {[%cal Rg3e4]}) 16... Nxe4 {[%emt 0:00:30]} 17. Bxe4 {[%emt 0:00:00]} h6 {[%emt 0:00:03]} 18. c4 {[%emt 0:00:08] Threatens to win with Rb5.} (18. a4 {is more complex.} Rd8 19. Qb3 Na5 20. Qb4) 18... Bb7 {[%emt 0:00:22]} 19. Rb5 {[%emt 0:00:11] Wards off Na5} Qe7 {[%emt 0:00:03]} 20. Bb2 {[%emt 0:01:09]} Rac8 {[%emt 0:02:50]} 21. Qa4 {[%emt 0:00:37][%cal Oc4c5]} Qh4 {[%emt 0:02:22]} 22. Bd5 {[%emt 0:00:34]} Ba8 {[%emt 0:00:02]} 23. Bc3 {[%emt 0:00:31]} Na5 {[%emt 0:01:42] Black is now going downhill.} 24. Bxa5 $16 {[%emt 0:01:08] And now Bxa8 would win. This pair of bishops is nice.} a6 {[%emt 0:00:02]} 25. Rb4 {[%emt 0:00:28][%cal Bb5b4,Bb4b6,Bb6a6][%mdl 32]} ({But not} 25. Rxb6 $6 Bxd5 26. f3 Qxc4 27. Qxc4 Bxc4 $11) (25. Bxf7+ Kxf7 26. Rxb6 Qe4 27. Qd7+ (27. Rxa6 $2 Qxg2#) (27. f3 Qxe3+ 28. Kh1 Qd3 $14) 27... Kg8 $16) 25... bxa5 {[%emt 0:00:06]} 26. Qxa5 {[%emt 0:00:01]} Qf6 {[%emt 0:00:17]} (26... Qd8 $16 {was worth a try.} 27. Qxd8 (27. Qxa6 Bxd5 28. cxd5 Qxd5 $16) 27... Rexd8) 27. Rb6 $18 {[%emt 0:00:04]} Qh4 {[%emt 0:00:26]} 28. Rxa6 {[%emt 0:00:43]} Bxd5 {[%emt 0:00:01]} 29. cxd5 {[%emt 0:00:01]} Red8 {[%emt 0:00:01]} 30. h3 {[%emt 0:00:21]} Qc4 {[%emt 0:00:10] [#]} 31. Rc6 $1 {[%emt 0:00:12]} Qd3 {[%emt 0:00:11]} 32. Rxc8 {[%emt 0:00:46]} Rxc8 {[%emt 0:00:00][%mdl 4096] Endgame KQR-KQR} 33. a4 {[%emt 0:00:01][%cal Ba3a4,Ba4a5][%mdl 32]} e4 {[%emt 0:00:10]} 34. Ra1 {[%emt 0:00:18]} g6 {[%emt 0:00:09]} 35. Qb5 {[%emt 0:00:15]} Qd2 $2 {[%emt 0:00:01]} (35... Rd8 36. Qxd3 exd3) 36. a5 {[%emt 0:00:15]} Rc2 {[%emt 0:00:01]} 37. Rf1 {[%emt 0:00:07]} Kg7 {[%emt 0:00:01]} (37... Ra2 $142 38. Qe8+ Kg7 39. Qxe4 Rxa5 40. Qe5+ Kh7) 38. Qa4 {[%emt 0:00:19]} (38. Qb1 $142) 38... Rc8 $2 {[%emt 0:00:10]} (38... Rc5 39. a6 (39. Qxe4 Rxd5 40. Rb1 Qxa5 $16) 39... Ra5 40. Qxe4 Rxa6 41. Qe5+ Kh7) 39. Rd1 {[%emt 0:00:08]} Rc1 {[%emt 0:00:02]} 40. Rxc1 {[%emt 0:00:02]} Qxc1+ {[%emt 0:00:01]} 41. Kh2 {[%emt 0:00:01] Intending a6 and mate.} Qc7+ {[%emt 0:00:00]} 42. g3 {[%emt 0:00:01] Weighted Error Value: White=0.32/Black=0.40} 1-0

[Event "AI Cup Div-2 2023"]
[Site "Online"]
[Date "2023.09.26"]
[Round "2.4"]
[White "Keymer, Vincent"]
[Black "Fedoseev, Vladimir"]
[Result "0-1"]
[ECO "A34"]
[WhiteElo "2717"]
[BlackElo "2683"]
[Annotator "TA"]
[PlyCount "62"]
[EventDate "2023.09.18"]
[EventType "k.o."]
[EventCountry "NET"]
[SourceTitle "playchess.com"]
[Source "ChessBase"]
[SourceQuality "1"]
[TimeControl "900+3"]

{[%evp 14,62,22,7,16,0,0,0,0,-7,0,-12,42,-10,-11,-66,0,-86,-47,-105,-91,-93,-90,-89,-93,-89,-70,-101,-85,-132,-82,-237,-227,-461,-464,-595,-589,-578,-570,-979,-826,-2295,-2187,-1745,-1536,-29982,-29983,-29983,-12845,-29996,-1614]} 1. c4 {[%emt 0:00:03]} c5 {[%emt 0:00:10]} 2. g3 {[%emt 0:00:06]} Nf6 {[%emt 0:00:29]} 3. Bg2 {[%emt 0:00:01]} d5 {[%emt 0:00:02]} 4. cxd5 {[%emt 0:00:06]} Nxd5 {[%emt 0:00:00]} 5. Nc3 {[%emt 0:00:00]} Nc7 {[%emt 0:00:24]} 6. d3 {[%emt 0:01:55]} e5 {[%emt 0:00:04]} 7. Be3 {[%emt 0:00:01]} Be7 {[%emt 0:00:08]} 8. Rc1 {[%emt 0:00:03]} Nd7 {[%emt 0:01:10] A34: Symmetrical English: 2 Nc3, lines with ...d5.} 9. Qa4 {[%emt 0:02:27]} O-O {[%emt 0:00:07]} 10. Nf3 {[%emt 0:00:00]} Rb8 {[%emt 0:00:29] The position is equal.} 11. Nd2 {[%emt 0:00:51]} (11. Qxa7 $2 Ra8 $19) 11... a6 {[%emt 0:00:17][%cal Ba7a6,Ba6b5][%mdl 32]} 12. O-O {[%emt 0:00:11]} b5 {[%emt 0:00:45] [#]} (12... Re8 $11) 13. Qb3 $146 {[%emt 0:01:28]} (13. Qa5 $14) ({Predecessor:} 13. Qa5 Ne6 14. Qxd8 Rxd8 15. h3 Nf6 16. Nde4 Nxe4 17. Bxe4 Nd4 18. Rfe1 {1-0 Gochelashvili,D (2411)-Sabirov,T (1865) Sochi Lobanov Memorial 2021 (2)}) 13... Kh8 $11 {[%emt 0:01:29]} 14. f4 {[%emt 0:01:07]} ({Better is} 14. Nce4 $11) 14... f5 {[%emt 0:00:45]} (14... Nf6 $15 15. Nce4 (15. fxe5 Ng4 $15) 15... Ng4 16. Bxc5 Bxc5+ 17. Nxc5 (17. Rxc5 exf4 18. Rxf4 Ne6 $17) 17... Qd4+ 18. Kh1 exf4) 15. a4 {[%emt 0:01:37]} (15. Nf3 $1 $11 {keeps the balance.}) 15... Bd6 {[%emt 0:00:56]} 16. axb5 {[%emt 0:00:08]} (16. Rce1 $1 $15) 16... axb5 $17 {[%emt 0:00:03]} 17. Nf3 {[%emt 0:01:07] [#]} exf4 {[%emt 0:00:23]} 18. Bxf4 {[%emt 0:00:00]} Bxf4 {[%emt 0:00:01]} 19. gxf4 {[%emt 0:00:00]} Qe7 {[%emt 0:00:06]} 20. e4 {[%emt 0:01:35]} fxe4 {[%emt 0:00:05]} 21. Nxe4 {[%emt 0:00:02]} (21. dxe4 $142 c4 22. Qc2) 21... c4 {[%emt 0:00:54]} (21... Rxf4 22. Nfg5 Rxf1+ 23. Rxf1 $14) ({Black should try} 21... Ne6 {And now ...Bb7 would win.} 22. Ne5 Nxe5 23. fxe5 Bb7) 22. Qd1 $2 {[%emt 0:00:26] Now White is beyond hope.} (22. Qa3 $17 Qxa3 23. bxa3) 22... Nd5 $19 {[%emt 0:00:22][%cal Bc7d5,Bd5f4,Bf4g2][%mdl 32]} 23. Re1 $2 {[%emt 0:00:57]} (23. Qd2 Nxf4 24. Ne1 Nxg2 25. Rxf8+ Qxf8 26. Nxg2) 23... Nxf4 {[%emt 0:00:08]} ({Weaker is} 23... Rxf4 24. dxc4 Rxe4 25. Qxd5 (25. cxd5 Nf6 $14) 25... Rxe1+ 26. Rxe1 $16) 24. dxc4 {[%emt 0:00:01]} Nxg2 {[%emt 0:00:32]} 25. Kxg2 {[%emt 0:00:00]} Bb7 {[%emt 0:00:12]} ({And not} 25... Ne5 26. Nd6 $11) 26. Qd4 {[%emt 0:00:12]} Rbe8 {[%emt 0:00:41]} 27. Ned2 {[%emt 0:01:00]} Qg5+ {[%emt 0:00:24]} (27... Qxe1 $2 28. Rxe1 Rxe1 29. Qxd7 $18) 28. Kf2 {[%emt 0:00:19]} Ne5 {[%emt 0:00:05]} 29. Rc3 {[%emt 0:00:22]} Bxf3 {[%emt 0:00:45]} 30. Nxf3 {[%emt 0:00:06]} Nxf3 {[%emt 0:00:03][%mdl 64] [#] Discovered Attack} (30... Nxc4 $2 31. Rxe8 Qf5 32. Qd7 $18 {[%mdl 64] Back Rank}) 31. Rxe8 {[%emt 0:00:01]} Qg1+ {[%emt 0:00:02][%mdl 64] Skewer, Double Attack. An entertaining game by Fedoseev.   Weighted Error Value: White=1.22/Black=0.21 (precise)} ({Don't play} 31... Nxd4+ 32. Rxf8#) 0-1